[Event "44th Chess Olympiad Open 2022"]
[Site "Chennai"]
[Date "2022.08.06"]
[Round "8.18"]
[White "Wageih, Kareim"]
[Black "Iturrizaga Bonelli, Eduardo"]
[Result "1/2-1/2"]
[WhiteElo "2387"]
[BlackElo "2619"]
[Annotator "TA"]
[PlyCount "80"]
[EventDate "2022.??.??"]
[TimeControl "60"]

{[%evp 18,80,14,15,41,-6,32,32,39,41,35,21,21,33,18,14,30,27,22,11,23,0,0,-16,
0,0,0,7,10,0,-11,-20,0,-24,62,45,43,0,39,48,47,37,42,0,0,-4,0,-24,104,106,185,
182,180,174,158,8,242,245,236,244,241,0,209,0,-175]} 1. d4 {[%emt 0:02:34]} Nf6
{[%emt 0:00:06]} 2. c4 {[%emt 0:00:39]} e6 {[%emt 0:00:06]} 3. g3 {[%emt 0:00:
00]} c5 {[%emt 0:00:37]} 4. d5 {[%emt 0:00:04]} exd5 {[%emt 0:00:04]} 5. cxd5 {
[%emt 0:00:01]} d6 {[%emt 0:00:07]} 6. Nc3 {[%emt 0:00:15]} g6 {[%emt 0:00:04]}
7. Bg2 {[%emt 0:00:00]} Bg7 {[%emt 0:00:00]} 8. Nf3 {[%emt 0:00:00]} O-O {
[%emt 0:00:00]} 9. O-O {[%emt 0:00:00]} Re8 {[%emt 0:00:00]} 10. Bf4 {[%emt 0:
00:00]} h6 {[%emt 0:00:17] 10...Bf5 is the modern continuation. A62: Modern
Benoni: Fianchetto Variation without early ...Nbd7.} 11. h3 {[%emt 0:03:23]} (
11. Qc1 $14) 11... a6 {[%emt 0:02:30]} 12. a4 {[%emt 0:05:11]} g5 {[%emt 0:00:
00] White is slightly better.} 13. Bc1 {[%emt 0:03:06]} Bf5 {[%emt 0:00:23]}
14. Nd2 {[%emt 0:02:45]} Nbd7 {[%emt 0:00:05]} 15. e4 {[%emt 0:05:31]} Bh7 {
[%emt 0:00:05] [#]} 16. Nc4 $146 {[%emt 0:03:11]} ({Predecessor:} 16. f4 Qc7
17. Nc4 Nxe4 18. Nxe4 Bxe4 19. fxg5 hxg5 20. Bxg5 Bf6 21. h4 Ne5 22. Nxe5 Rxe5
{1-0 (36) Gerber,R (2260)-Jurkovic,A (2325) Geneve 1991}) 16... Nb6 {[%emt 0:
00:00]} 17. Nxb6 {[%emt 0:02:14]} Qxb6 {[%emt 0:00:05]} 18. a5 {[%emt 0:00:03]}
Qd8 {[%emt 0:01:56][%cal Rf6e4]} 19. Re1 {[%emt 0:05:14]} Nd7 {[%emt 0:00:21]}
20. Be3 {[%emt 0:20:30]} Ne5 {[%emt 0:05:21]} 21. Ra4 {[%emt 0:00:23] Inhibits
Nc4.} f5 {[%emt 0:00:25]} 22. f4 {[%emt 0:13:58]} gxf4 {[%emt 0:00:17]} 23.
gxf4 {[%emt 0:00:19]} Ng6 {[%emt 0:00:06]} 24. e5 {[%emt 0:01:51]} dxe5 {
[%emt 0:04:46]} 25. fxe5 {[%emt 0:00:32]} Bxe5 {[%emt 0:00:27]} (25... Nxe5 $11
26. Bxc5 (26. d6 Kh8 $15) 26... f4) 26. Bxc5 $14 {[%emt 0:04:44] Black must
now prevent d6.} Rc8 {[%emt 0:00:07]} 27. Bf2 {[%emt 0:01:04][%cal Yd5d6] And
now d6! would win.} Qd6 {[%emt 0:01:51]} (27... Qg5 $2 28. d6 (28. h4 Qf6 $16)
28... Bg3 29. Qd5+ Kf8 30. Bxg3 Qxg3 31. Qxf5+ Kg8 32. Re7 $1 (32. Rf1 Ne5 $18)
32... Qxg2+ 33. Kxg2 $18) 28. Qf3 {[%emt 0:03:07]} Re7 {[%emt 0:00:00]} 29. Kh1
{[%emt 0:01:59]} (29. Qxf5 Rf8 30. Qg4 (30. Qc2 $2 Nf4 $19) 30... Rxf2 31. Kxf2
Qc5+ 32. Kf1 h5 33. Qxh5 (33. Qf3 $2 Rf7 $19) 33... Rf7+ 34. Bf3 Bxc3 35. bxc3
Qb5+ 36. Kg1 Qxa4 $17) 29... Rg7 {[%emt 0:11:06]} 30. Bf1 {[%emt 0:05:33]} (30.
Qxf5 $2 Rf8 31. Qg4 Rxf2 $19) 30... Kh8 {[%emt 0:13:19]} 31. Bg2 {[%emt 0:07:
21]} (31. Qxf5 $2 Rf8 32. Qc2 Bxc3 $19) 31... Rcg8 {[%emt 0:01:08]} 32. Ne2 {
[%emt 0:03:14]} (32. Qxf5 $2 Rf8 33. Qg4 (33. Qc2 $2 Nf4 $19) 33... Rxf2 $19)
32... Bh2 {[%emt 0:03:45]} (32... Bxb2 $11 33. Qb3 Be5) 33. Ng3 $16 {[%emt 0:
03:14]} Nh4 {[%emt 0:02:47]} 34. Rxh4 $18 {[%emt 0:00:00] Active counter play!}
Bxg3 {[%emt 0:00:06]} 35. Re6 $1 {[%emt 0:02:54]} Qc7 {[%emt 0:00:01] [#]
Strongly threatening ...Bxf2.} 36. Rhxh6 {[%emt 0:01:26] Really sharp!} ({
Only move:} 36. Qxg3 $1 $16 Qxg3 37. Bxg3 Rxg3 38. Rexh6) 36... Bxf2 $2 {
[%emt 0:00:40]} (36... Qc1+ $11 {and Black has nothing to worry.} 37. Bg1 Bf4
38. Rxh7+ Rxh7) 37. Qxf2 {[%emt 0:00:19]} Qc1+ {[%emt 0:02:02]} (37... Rxg2 {
gets mated.} 38. Qd4+) 38. Bf1 {[%emt 0:00:58]} Qg5 {[%emt 0:05:13] [#]} 39. d6
$2 {[%emt 0:01:07]} ({Not} 39. Qd4 Qg1+ 40. Qxg1 Rxg1+ 41. Kh2 Rxf1 $11) ({
White must play} 39. Kh2 $1 $18) 39... f4 $2 {[%emt 0:01:36] [#]} (39... Qg1+
$11 {and Black stays safe.} 40. Qxg1 Rxg1+ 41. Kh2 Rxf1) 40. Qd4 $4 {[%emt 0:
00:31]} (40. Bd3 $2 {is a self mate.} Qg1+ 41. Qxg1 Rxg1+ 42. Kh2 R8g2#) (40.
Kh2 $1 $18 {was the only winning move.}) 40... Qg1+ {[%emt 0:10:15] Weighted
Error Value: White=0.27 (precise) / Black=0.36} 1/2-1/2

[Event "44th Chess Olympiad Open 2022"]
[Site "Chennai"]
[Date "2022.08.06"]
[Round "8.19"]
[White "Piorun, Kacper"]
[Black "Djukic, Nikola"]
[Result "1/2-1/2"]
[WhiteElo "2636"]
[BlackElo "2526"]
[Annotator "TA"]
[PlyCount "119"]
[EventDate "2022.??.??"]
[TimeControl "60"]

{[%evp 9,119,9,14,-7,0,-3,7,0,23,10,31,18,16,0,0,0,0,0,29,-15,-10,-14,-12,-22,
-15,-18,0,-12,0,0,0,0,2,2,80,84,80,87,79,68,66,79,80,80,80,8,8,12,8,7,7,7,7,7,
7,11,15,15,63,63,64,64,72,72,72,38,38,38,53,38,38,38,38,38,38,38,38,7,7,7,8,8,
8,14,17,7,7,7,8,8,8,8,8,0,0,0,0,0,0,0,0,0,0,0,0,0,0,0,0,0,0,0]} 1. d4 {[%emt 0:
00:00]} Nf6 {[%emt 0:00:07]} 2. c4 {[%emt 0:00:06]} g6 {[%emt 0:00:14]} 3. g3 {
[%emt 0:00:07]} c6 {[%emt 0:01:46]} 4. Bg2 {[%emt 0:01:50]} d5 {[%emt 0:00:08]}
5. Nf3 {[%emt 0:03:09]} Bg7 {[%emt 0:00:20]} 6. a4 {[%emt 0:00:47] D73:
Fianchetto Grünfeld: 5 Nf3 .} O-O {[%emt 0:12:19]} 7. O-O {[%emt 0:00:11]} Na6
{[%emt 0:06:40][%cal Yb8a6,Ya6b4,Yb4c6]} 8. cxd5 {[%emt 0:08:22]} cxd5 {
[%emt 0:00:10]} 9. Nc3 {[%emt 0:00:05]} Nb4 {[%emt 0:04:21] [#]} 10. a5 $146 {
[%emt 0:04:02]} ({Predecessor:} 10. Qb3 a5 11. Rd1 b6 12. Na2 Nxa2 13. Qxa2 Ba6
14. Bf1 Rc8 15. Qb3 Bc4 16. Qa3 {0-1 (47) Bulatova,K (2009)-Tokarev,I (2323)
Kazan 2017}) 10... Nc6 {[%emt 0:04:57]} 11. Bd2 {[%emt 0:04:59]} Ne4 {[%emt 0:
00:00]} 12. Be1 {[%emt 0:03:16]} Bf5 {[%emt 0:07:58]} 13. e3 {[%emt 0:07:38]
[%cal Yf3e5]} Qd7 {[%emt 0:06:58]} 14. Qb3 {[%emt 0:10:31]} (14. Ne5 $5 Nxe5
15. dxe5 $11) 14... Rfd8 {[%emt 0:10:06]} 15. Nh4 {[%emt 0:06:48][%cal Yf3h4,
Yh4g2,Yg2f4]} Nxc3 {[%emt 0:08:02]} 16. Bxc3 {[%emt 0:00:09]} Be4 {[%emt 0:07:
21]} 17. Rfc1 $1 {[%emt 0:00:14]} Bxg2 {[%emt 0:00:21]} 18. Nxg2 {[%emt 0:00:
05]} e5 {[%emt 0:06:13]} 19. dxe5 {[%emt 0:02:30]} Bxe5 {[%emt 0:00:00]} 20.
Rd1 {[%emt 0:07:13]} d4 {[%emt 0:05:02]} 21. Ra4 {[%emt 0:02:04] Black should
prevent exd4.} d3 {[%emt 0:05:09]} (21... Qg4 $11) 22. Nf4 $16 {[%emt 0:09:56]}
Bxc3 {[%emt 0:00:21]} 23. Rxd3 {[%emt 0:01:02]} Qf5 {[%emt 0:00:00]} 24. Qxc3 {
[%emt 0:13:21]} Rxd3 {[%emt 0:01:39]} 25. Qxd3 {[%emt 0:00:00]} Qxd3 {[%emt 0:
00:10]} 26. Nxd3 {[%emt 0:00:02] Endgame KRN-KRN} Rd8 {[%emt 0:00:22]} 27. Ra3
{[%emt 0:05:29]} (27. Nc5 $16) 27... Nxa5 $1 $11 {[%emt 0:00:26]} 28. Rxa5 {
[%emt 0:00:05]} Rxd3 {[%emt 0:00:06]} 29. Rxa7 {[%emt 0:00:03] KR-KR} Rb3 {
[%emt 0:00:07]} 30. Ra2 {[%emt 0:00:02]} Kg7 {[%emt 0:03:55]} 31. Kf1 {[%emt 0:
00:01]} g5 {[%emt 0:01:07]} 32. Ke2 {[%emt 0:00:00]} Rb6 {[%emt 0:00:06]} 33.
Kd3 {[%emt 0:01:51]} Rh6 {[%emt 0:00:53]} (33... Rd6+ $11 {should be
considered.} 34. Ke2 Rb6) 34. Ra5 $14 {[%emt 0:00:13]} Rxh2 {[%emt 0:01:03]}
35. Ke2 {[%emt 0:01:24]} Kg6 {[%emt 0:01:06]} 36. Rb5 {[%emt 0:00:27]} h5 {
[%emt 0:00:03]} 37. Rxb7 {[%emt 0:01:16]} h4 {[%emt 0:00:00]} 38. gxh4 {
[%emt 0:02:49]} gxh4 {[%emt 0:00:31]} 39. Rb8 {[%emt 0:03:02]} Rh1 {[%emt 0:01:
13]} 40. Kf3 {[%emt 0:01:48]} h3 {[%emt 0:00:32]} 41. b4 {[%emt 0:05:49]} h2 {
[%emt 0:07:18]} 42. Kg2 {[%emt 0:00:44]} Rf1 {[%emt 0:00:00]} 43. Kxh2 {
[%emt 0:00:22] [#] Kg2 is the strong threat.} (43. Rh8 $5 {[%cal Rg2f1]} Rb1
44. Kxh2 $14 (44. Rxh2 Rxb4 45. Rh8 f5 $14)) 43... Rxf2+ {[%emt 0:00:05] The
position is equal.} 44. Kg3 {[%emt 0:00:02]} Rb2 {[%emt 0:00:00]} 45. Kf4 {
[%emt 0:00:30]} Kf6 {[%emt 0:02:16]} 46. Rb6+ {[%emt 0:06:13]} Ke7 {[%emt 0:00:
05]} 47. e4 {[%emt 0:01:27]} Rb1 {[%emt 0:08:07]} 48. Rb5 {[%emt 0:04:05]} f6 {
[%emt 0:01:37]} 49. Ke3 {[%emt 0:03:00]} Kd6 {[%emt 0:00:00]} 50. Rd5+ {
[%emt 0:00:45]} Kc6 {[%emt 0:00:15]} 51. Rd4 {[%emt 0:03:15]} Kb5 {[%emt 0:00:
46]} 52. Kf4 {[%emt 0:01:52]} Rf1+ {[%emt 0:00:06]} 53. Kg4 {[%emt 0:00:03]}
Rf2 {[%emt 0:00:30]} 54. Kh4 {[%emt 0:05:07]} Rg2 {[%emt 0:00:00]} 55. Kh3 {
[%emt 0:00:52]} Rg8 {[%emt 0:00:39]} 56. Kh4 {[%emt 0:00:48]} Rg7 {[%emt 0:00:
39]} 57. Kh5 {[%emt 0:00:38]} Rg5+ {[%emt 0:00:17]} 58. Kh6 {[%emt 0:00:03] [#]
Threatening mate with Rd5+.} Rg8 {[%emt 0:00:40]} 59. Rd6 {[%emt 0:01:55]} Re8
{[%emt 0:00:15]} 60. Rxf6 {[%emt 0:00:24] Weighted Error Value: White=0.07 
(flawless) /Black=0.06 (flawless)} 1/2-1/2

[Event "44th Chess Olympiad Open 2022"]
[Site "Chennai"]
[Date "2022.08.06"]
[Round "8.19"]
[White "Bartel, Mateusz"]
[Black "Blagojevic, Dragisa"]
[Result "1-0"]
[WhiteElo "2597"]
[BlackElo "2499"]
[Annotator "TA"]
[PlyCount "93"]
[EventDate "2022.??.??"]
[TimeControl "60"]

{[%evp 13,93,-5,7,0,0,9,31,0,0,0,0,0,4,0,0,-5,-5,-9,15,6,0,0,14,12,9,9,14,20,
20,18,16,20,20,13,29,27,41,32,35,24,45,45,213,195,224,214,202,194,208,102,181,
147,199,202,183,81,166,181,142,45,48,42,166,171,171,167,165,149,285,285,259,
272,267,258,793,793,883,845,883,878,742,729]} 1. c4 {[%emt 0:00:03]} e6 {
[%emt 0:00:09]} 2. Nc3 {[%emt 0:00:05]} d5 {[%emt 0:00:13]} 3. d4 {[%emt 0:00:
00]} c6 {[%emt 0:00:23]} 4. Nf3 {[%emt 0:00:10]} Nf6 {[%emt 0:00:15]} 5. Qd3 {
[%emt 0:00:05]} dxc4 {[%emt 0:06:26]} 6. Qxc4 {[%emt 0:01:23]} b5 {[%emt 0:00:
00]} 7. Qd3 {[%emt 0:00:10]} Bb7 {[%emt 0:02:00]} 8. e4 {[%emt 0:00:28] D43:
Semi-Slav: 5 Bg5 h6.} b4 {[%emt 0:02:26]} 9. Na4 {[%emt 0:00:04]} Nbd7 {
[%emt 0:00:41] [#]} 10. Bf4 $1 $146 {[%emt 0:01:32] White is slightly better.
A relevant novelty.} ({Predecessor:} 10. Be3 Qa5 11. b3 Be7 12. Nd2 O-O 13. Rc1
c5 14. dxc5 Bc6 15. Qa6 Qc7 16. Be2 {0-1 (27) Can,E (2593)-Volokitin,A (2636)
Abu Dhabi 2019}) 10... Be7 {[%emt 0:07:38]} 11. Nd2 {[%emt 0:09:36]} O-O {
[%emt 0:11:11]} 12. Rc1 {[%emt 0:03:23]} a5 {[%emt 0:14:43]} 13. Be2 {[%emt 0:
00:00]} Ba6 {[%emt 0:08:06]} 14. Qe3 {[%emt 0:03:38]} Bb5 {[%emt 0:04:39]} 15.
b3 {[%emt 0:04:20]} Rc8 {[%emt 0:08:41]} 16. O-O {[%emt 0:03:02]} Bxa4 {
[%emt 0:04:25]} 17. bxa4 {[%emt 0:02:58]} c5 {[%emt 0:00:15]} 18. Nb3 {[%emt 0:
00:00][%cal Rd4c5]} cxd4 {[%emt 0:04:35]} 19. Qxd4 {[%emt 0:02:22]} Nc5 {
[%emt 0:00:33]} 20. Qxd8 $1 {[%emt 0:01:46]} Rfxd8 {[%emt 0:00:07]} 21. Nxc5 {
[%emt 0:01:57]} Rxc5 {[%emt 0:00:50]} 22. f3 {[%emt 0:01:20]} Rdc8 {[%emt 0:00:
00]} 23. Ba6 {[%emt 0:04:47]} R8c6 {[%emt 0:08:22]} 24. Bb5 {[%emt 0:00:25]
This bishop pair is nice.} Rc8 {[%emt 0:00:17]} 25. Be3 {[%emt 0:01:52]} Rc3 {
[%emt 0:01:11]} 26. Rfd1 {[%emt 0:03:16]} Kf8 {[%emt 0:03:02]} 27. Kf1 {
[%emt 0:00:24]} Bc5 $2 {[%emt 0:02:38]} ({Black should play} 27... Ne8 $14) 28.
Bd2 $18 {[%emt 0:02:27][%cal Ye3d2,Yd2f4,Yf4c7]} Rxc1 {[%emt 0:05:59]} 29. Rxc1
{[%emt 0:00:24] Threatens to win with Be3.} Rd8 {[%emt 0:00:05]} 30. Bf4 {
[%emt 0:02:43]} ({Don't take} 30. Rxc5 $6 Rxd2 31. Bc4 (31. Rc8+ Ke7 $11) 31...
Rd1+ 32. Ke2 Rc1 $16) 30... Be7 {[%emt 0:00:58]} 31. Rc6 {[%emt 0:02:30]} (31.
Bc7 $1 $18) 31... Nd7 {[%emt 0:01:25]} (31... Ra8 $16 {was necessary.}) 32. Ke2
{[%emt 0:01:30]} g5 {[%emt 0:00:44]} (32... Ra8 $16 33. Rc2 Nf6) 33. Bc7 {
[%emt 0:02:05][%csl Ya5,Yd8]} Ra8 {[%emt 0:00:32]} 34. Kd3 {[%emt 0:00:00]} (
34. Rc2 $18 {and White stays clearly on top.} Nf6 35. Bc6) 34... Bf6 {[%emt 0:
00:37]} (34... Bd8 $16 {was called for.}) 35. Bd6+ $1 {[%emt 0:01:35]} Kg7 {
[%emt 0:00:48] [#]} 36. Rc7 {[%emt 0:00:29]} ({White should try} 36. Ra6 $1 $16
{[%cal Ra6a8]} Rxa6 37. Bxa6) 36... Ne5+ $14 {[%emt 0:00:13]} 37. Kc2 {[%emt 0:
00:05]} g4 {[%emt 0:00:40]} (37... Rd8 $14 38. Bc5 Ra8) 38. f4 $36 {[%emt 0:00:
44][%cal Yf3f4,Yf4f5] White is really pushing.} Ng6 {[%emt 0:00:21]} 39. Bc4 {
[%emt 0:02:00]} Kg8 {[%emt 0:00:40]} 40. f5 {[%emt 0:00:00]} Nf8 {[%emt 0:00:
53]} (40... Rd8 $16 {is a better defense.}) 41. e5 {[%emt 0:30:44]} Bd8 {
[%emt 0:04:49] [#]} 42. Rb7 {[%emt 0:00:00]} Rc8 {[%emt 0:00:00]} 43. Kd3 {
[%emt 0:00:00] Strongly threatening Bxf8.} h5 $2 {[%emt 0:00:00]} (43... Ra8
44. Bxf8 Kxf8 45. fxe6 fxe6 46. Bxe6 g3 47. Rf7+ Ke8 48. Rxh7 gxh2) 44. Bxf8 {
[%emt 0:00:00] White is clearly winning.} Kxf8 {[%emt 0:00:45] [#]} 45. Rxf7+
$3 {[%emt 0:00:00]} Ke8 {[%emt 0:02:05]} (45... Kxf7 46. Bxe6+) 46. Bxe6 {
[%emt 0:00:00] Hoping for Rh7.} Rc5 {[%emt 0:00:35]} 47. Ke4 {[%emt 0:01:12]
Weighted Error Value: White=0.11 (very precise) /Black=0.31} 1-0

[Event "44th Chess Olympiad Open 2022"]
[Site "Chennai"]
[Date "2022.08.06"]
[Round "8.19"]
[White "Kadric, Denis"]
[Black "Wojtaszek, Radoslaw"]
[Result "1-0"]
[WhiteElo "2554"]
[BlackElo "2708"]
[Annotator "TA"]
[PlyCount "131"]
[EventDate "2022.??.??"]
[TimeControl "60"]

{[%evp 20,131,0,10,0,0,0,5,6,0,0,0,80,80,106,113,112,107,106,64,85,89,87,74,63,
64,72,53,55,52,50,53,49,49,127,123,127,114,132,127,148,98,149,101,101,101,162,
170,181,171,177,187,181,172,260,252,316,316,287,198,186,191,188,175,258,256,
243,257,243,250,242,235,219,189,148,148,204,154,208,199,249,148,149,0,179,65,
114,0,165,166,174,147,206,206,260,254,583,555,564,430,919,973,683,884,586,550,
1051,994,1048,981,805,589,5193,4552]} 1. e4 {[%emt 0:00:03]} e5 {[%emt 0:00:05]
} 2. Nf3 {[%emt 0:00:06]} Nc6 {[%emt 0:00:05]} 3. Nc3 {[%emt 0:03:53]} Nf6 {
[%emt 0:00:19]} 4. d4 {[%emt 0:00:18]} exd4 {[%emt 0:00:08]} 5. Nxd4 {[%emt 0:
00:00]} Bb4 {[%emt 0:00:11]} 6. Nxc6 {[%emt 0:00:02]} bxc6 {[%emt 0:00:09]} 7.
Bd3 {[%emt 0:00:02]} d5 {[%emt 0:00:17]} 8. exd5 {[%emt 0:00:29]} cxd5 {
[%emt 0:00:08]} 9. O-O {[%emt 0:00:03]} O-O {[%emt 0:00:08]} 10. Bg5 {[%emt 0:
00:00]} Be6 {[%emt 0:00:11]} 11. Qf3 {[%emt 0:03:21]} h6 {[%emt 0:00:39] C47:
Scotch Four Knights and Four Knights with 4 g3.} 12. Bxf6 {[%emt 0:05:22]} Qxf6
{[%emt 0:00:07]} 13. Qxf6 {[%emt 0:00:01]} gxf6 {[%emt 0:00:08] The position
is equal.} 14. Nb5 {[%emt 0:09:45]} c5 {[%emt 0:09:59]} 15. Nc7 {[%emt 0:03:29]
[#]} Rad8 $146 {[%emt 0:14:24]} (15... Rab8 $11) ({Predecessor:} 15... Rac8 16.
Nxe6 fxe6 17. c3 Ba5 18. f4 Rb8 19. Rab1 Rb7 20. c4 d4 21. Rf2 Rfb8 {½-½ (55)
Piacentini,C (2096)-Huesmann,T (2272) Belgium 2010}) 16. Na6 $1 $16 {[%emt 0:
00:00] White is more active.} Rc8 {[%emt 0:07:21]} 17. Nxb4 {[%emt 0:00:08]}
cxb4 {[%emt 0:00:04]} 18. b3 {[%emt 0:02:31]} a5 {[%emt 0:15:04]} 19. Rfb1 {
[%emt 0:00:50]} Rc5 {[%emt 0:03:54]} 20. a3 {[%emt 0:00:10]} Rb8 {[%emt 0:00:
00]} 21. Rb2 {[%emt 0:11:02]} d4 {[%emt 0:03:18]} 22. axb4 {[%emt 0:00:57]}
Rxb4 {[%emt 0:01:15]} 23. Rba2 {[%emt 0:09:30]} Bf5 $1 {[%emt 0:00:40]} 24.
Bxf5 {[%emt 0:01:34]} Rxf5 $14 {[%emt 0:00:02] Endgame KRR-KRR} 25. Rd1 {
[%emt 0:00:10]} Rd5 {[%emt 0:17:26]} 26. Rd3 {[%emt 0:00:34]} Kf8 {[%emt 0:00:
06]} ({Better is} 26... Rbb5 $14) 27. c4 $1 $16 {[%emt 0:12:11]} Re5 {[%emt 0:
08:46][%cal Re5e1]} 28. Kf1 {[%emt 0:00:35] Prevents Re1+.} Rb7 {[%emt 0:01:05]
} 29. g3 {[%emt 0:08:27]} (29. Rxd4 $6 Rxb3 30. g3 Rc3 $14) 29... Rb8 {[%emt 0:
01:52]} 30. Rf3 {[%emt 0:03:24]} (30. Rxd4 $6 Rxb3 31. Rd8+ Kg7 $14) (30. f4
$142 Re6 31. Rxa5 (31. Rxd4 Rxb3 32. Kg2 Ra6 $14)) 30... Ke7 {[%emt 0:02:55]} (
{Black should play} 30... Kg7) 31. Rd2 {[%emt 0:00:32]} (31. Ra3 $142 $1) 31...
Re4 {[%emt 0:00:55]} 32. Rfd3 {[%emt 0:01:09]} f5 {[%emt 0:00:00]} (32... Re5
$16) 33. Ra2 $18 {[%emt 0:03:40]} Re5 {[%emt 0:00:49]} 34. f4 {[%emt 0:01:14]}
(34. Rxd4 Rxb3 35. Rd1 f4 $14) 34... Rc5 {[%emt 0:00:32]} 35. Ke1 {[%emt 0:00:
36]} (35. Rxd4 Rxb3 36. Re2+ Kf8 $11) 35... h5 {[%emt 0:00:00]} 36. Kd1 {
[%emt 0:00:33]} (36. Rxd4 Rxb3 37. Re2+ Kf6 $11) 36... Rb4 {[%emt 0:02:13]} (
36... Rd8 $142 37. Kc2 Kf6) 37. Kc2 {[%emt 0:03:12]} ({Weaker is} 37. Rxd4 Rxb3
38. Kc2 Rf3 $11) 37... h4 {[%emt 0:00:40]} (37... a4 $2 38. Rxa4 Rcxc4+ 39.
bxc4 $18) 38. gxh4 {[%emt 0:02:01]} ({Much less strong is} 38. Rxd4 $6 Rb6 39.
Ra1 (39. gxh4 Rh6 $16) 39... hxg3 $18) 38... Rb6 {[%emt 0:00:02]} (38... a4 $2
39. Rxa4 Rcxc4+ 40. bxc4 $18) 39. Rxd4 {[%emt 0:00:00]} Rh6 {[%emt 0:00:07]}
40. b4 {[%emt 0:01:39]} axb4 {[%emt 0:00:38]} 41. Kb3 {[%emt 0:31:05]} Rxh4 {
[%emt 0:33:36]} (41... Rcc6 {was necessary.} 42. h5 (42. Kxb4 Rb6+ 43. Kc3 Rxh4
$16) 42... Rxh5 43. Kxb4 Re6) 42. Kxb4 {[%emt 0:00:00]} Rc8 {[%emt 0:00:04]}
43. c5 {[%emt 0:00:21]} Rg4 {[%emt 0:00:51]} 44. Re2+ {[%emt 0:00:00]} Kf8 {
[%emt 0:00:00]} 45. Rc4 {[%emt 0:00:00]} Rg6 {[%emt 0:00:00]} 46. Rec2 {
[%emt 0:00:00] Hoping for c6.} Rb8+ {[%emt 0:00:00]} 47. Kc3 {[%emt 0:00:00]
Threatens to win with c6.} Rc6 {[%emt 0:00:00]} (47... Rc8 $16 48. Kd4 Rd8+ 49.
Ke5 Re6+ 50. Kxf5 Rd5+ 51. Kg4 f5+ 52. Kf3 Rc6) 48. Rd2 {[%emt 0:00:00]} Rb1 {
[%emt 0:00:00]} (48... Rbc8 $16) 49. Rb2 {[%emt 0:00:00]} Rc1+ {[%emt 0:00:00]
[#]} (49... Rd1 $142 50. Rb6 Rc7) 50. Kd4 {[%emt 0:00:00]} ({White must play} 
50. Kb4 $1 $18 Re1 51. Kb5) 50... Rd1+ $16 {[%emt 0:00:00]} 51. Kc3 {[%emt 0:
00:00]} (51. Ke5 $16) 51... Ke7 $2 {[%emt 0:00:00]} (51... Rc1+ $1 $11 52. Kd4
Rd1+ 53. Ke5 Kg7) 52. Kb4 {[%emt 0:00:00]} (52. Re2+ $18 Kf6 53. Kb3) 52... Rc8
{[%emt 0:00:00] [#]} (52... Kd7 $1 $14) 53. Kc3 {[%emt 0:00:00]} (53. Rcc2 $1
$16 {[%cal Rc2e2]}) 53... Rc6 $1 $18 {[%emt 0:00:00]} 54. Re2+ {[%emt 0:00:00]}
Kf6 {[%emt 0:00:00]} 55. Rd2 {[%emt 0:00:00]} Rh1 {[%emt 0:00:00]} (55... Rf1
$16 56. Rb2 Ke7) 56. Kd4 {[%emt 0:00:00] Strongly threatening Kd5.} Ke6 {
[%emt 0:00:00]} 57. Rcc2 {[%emt 0:00:00]} f6 $2 {[%emt 0:07:51]} (57... Rf1 {
is tougher.} 58. Re2+ Kd7) 58. Re2+ {[%emt 0:00:00] White is clearly winning.}
Kd7 {[%emt 0:00:03]} 59. Kc4 {[%emt 0:00:00]} Rf1 {[%emt 0:01:18]} (59... Rc8
$142 60. Rcd2+ Kc7 61. Re7+ Kb8 62. Rb2+ Ka8) 60. Rcd2+ {[%emt 0:00:00]} Kc8 {
[%emt 0:00:14]} 61. Re8+ {[%emt 0:02:33]} Kc7 {[%emt 0:00:04]} 62. Re7+ {
[%emt 0:00:26]} Kc8 {[%emt 0:00:13]} 63. Kd5 {[%emt 0:04:34]} Ra6 {[%emt 0:01:
27]} 64. Rd4 {[%emt 0:00:06]} Rc1 {[%emt 0:00:00]} 65. h4 {[%emt 0:01:05]} Kd8
{[%emt 0:00:52]} 66. Re6 {[%emt 0:00:41] Weighted Error Value: White=0.20 
(precise) /Black=0.33} 1-0

[Event "44th Chess Olympiad Open 2022"]
[Site "Chennai"]
[Date "2022.08.06"]
[Round "8.19"]
[White "Draskovic, Luka"]
[Black "Moranda, Wojciech"]
[Result "1/2-1/2"]
[WhiteElo "2503"]
[BlackElo "2636"]
[Annotator "TA"]
[PlyCount "66"]
[EventDate "2022.??.??"]
[TimeControl "60"]

{[%evp 9,66,29,35,20,27,6,7,12,16,10,8,4,10,0,0,0,0,0,0,0,0,0,0,0,0,0,0,0,0,-6,
-9,-12,-6,-23,-8,-63,-9,-10,0,0,0,-20,0,0,0,0,0,-19,-16,-11,-12,-42,-42,-42,0,
-42,0,-42,0]} 1. Nf3 {[%emt 0:00:10]} d5 {[%emt 0:00:15]} 2. g3 {[%emt 0:00:52]
} Nd7 {[%emt 0:00:18]} 3. d4 {[%emt 0:01:20]} Nb6 {[%emt 0:00:16]} 4. Bg2 {
[%emt 0:01:00]} Bf5 {[%emt 0:00:28]} 5. O-O {[%emt 0:06:45]} e6 {[%emt 0:00:24]
} 6. Nc3 {[%emt 0:03:48] D02:1 d4 d5 2 Nf3 sidelines, including 2...Nf6 3 g3
and 2...Nf6 3 Bf4.} (6. Ne5 {seems wilder.} c6 7. c4 f6 8. cxd5 fxe5 9. dxc6 e4
10. cxb7 Rb8 11. Nc3) 6... Be7 {[%emt 0:05:27]} 7. Re1 {[%emt 0:01:16]} Nf6 {
[%emt 0:05:19]} 8. Nh4 {[%emt 0:04:51] [#] The position is equal.} O-O $146 {
[%emt 0:08:53]} ({Predecessor:} 8... Bg4 9. h3 Bh5 10. g4 Nfd7 11. gxh5 Bxh4
12. e4 Qf6 13. Rf1 O-O-O 14. a4 a5 {1-0 (26) Malikentzos,S (2429)
-Anagnostopoulos,K (2367) Athens 2021}) 9. Nxf5 {[%emt 0:08:20]} exf5 {[%emt 0:
00:00]} 10. Qd3 {[%emt 0:02:30]} g6 {[%emt 0:05:19]} 11. Bg5 {[%emt 0:04:14]}
c6 {[%emt 0:11:31]} 12. f3 {[%emt 0:09:55]} Re8 {[%emt 0:09:12]} (12... Nc4 {
is more complex.} 13. Rab1 Nd6 14. Bxf6 Bxf6 15. e4 fxe4 16. fxe4 dxe4 17. Nxe4
Re8) 13. e4 {[%emt 0:12:06]} fxe4 {[%emt 0:04:30]} 14. fxe4 {[%emt 0:00:48]}
dxe4 {[%emt 0:00:16]} 15. Nxe4 {[%emt 0:02:57]} Nxe4 {[%emt 0:01:35]} 16. Bxe7
{[%emt 0:00:07]} Rxe7 {[%emt 0:01:05]} 17. Rxe4 {[%emt 0:00:27]} Rxe4 {[%emt 0:
00:00]} 18. Qxe4 {[%emt 0:00:59]} Qf8 {[%emt 0:06:07]} 19. c3 {[%emt 0:09:56]}
Re8 {[%emt 0:00:31]} 20. Qd3 {[%emt 0:01:36]} Qe7 {[%emt 0:05:26]} 21. Bf3 {
[%emt 0:04:46] Inhibits Qe2.} Qg5 {[%emt 0:00:50]} 22. Rf1 {[%emt 0:02:58]} (
22. Kf2 $11) 22... Re3 {[%emt 0:01:50]} (22... h5 $1 $15) 23. Qc2 $11 {[%emt 0:
00:00]} Nc4 {[%emt 0:01:10]} 24. b3 {[%emt 0:05:55]} Nd6 {[%emt 0:00:59][%cal
Yc4d6,Yd6f5,Yf5h4]} 25. Qc1 {[%emt 0:01:55]} h6 {[%emt 0:02:43][%cal Ye3f3] [#]
Strongly threatening ...Rxf3!} 26. Kf2 {[%emt 0:03:30]} Nf5 {[%emt 0:11:20]}
27. Re1 {[%emt 0:02:27][%cal Re1e3]} Rd3 {[%emt 0:01:42] aiming for ...Rd2+.}
28. Qxg5 {[%emt 0:00:05]} hxg5 {[%emt 0:00:08] KRB-KRN} 29. g4 {[%emt 0:01:35]}
Nh4 {[%emt 0:01:18]} 30. Re3 {[%emt 0:00:35]} Rd2+ {[%emt 0:00:17]} 31. Re2 {
[%emt 0:00:05]} Rd3 {[%emt 0:00:38]} 32. Re3 {[%emt 0:00:00]} Rd2+ {[%emt 0:00:
17]} 33. Re2 {[%emt 0:00:05]} Rd3 {[%emt 0:00:15] Weighted Error Value:
White=0.09 (flawless) /Black=0.10 (very precise)} 1/2-1/2